fUSD/lending_fUSD_20250507
["ID","MTS","AMOUNT","RATE_DAILY","PERIOD"]
[360149918,1746576643762,-450.0,0.00019683,2]
[360149919,1746576643772,-450.0,0.00019683,2]
[360149920,1746576643782,-450.0,0.00019683,2]
[360149921,1746576643792,-450.0,0.00019683,2]
[360149922,1746576643802,-450.0,0.00019683,2]
[360149923,1746576643812,-366.89639831,0.00019683,2]
[360149924,1746576643822,-450.0,0.00019683,2]
[360149925,1746576643831,-450.0,0.00019683,2]
[360149926,1746576643841,-1805.97,0.00019683,2]
[360149927,1746576643850,-450.0,0.00019683,2]
[360149928,1746576643860,-511.72,0.00019683,2]
[360149929,1746576643869,-450.0,0.00019683,2]
[360149930,1746576643879,-511.72,0.00019683,2]
[360149931,1746576643888,-450.0,0.00019683,2]
[360149932,1746576643898,-450.0,0.00019683,2]
[360149933,1746576643907,-897.99,0.00019683,2]
[360149934,1746576643917,-450.0,0.00019683,2]
[360149935,1746576643926,-489.76,0.00019683,2]
[360149936,1746576643937,-462.75072365,0.00019683,2]
[360149937,1746576643946,-754.08,0.00019683,2]
[360149938,1746576643956,-450.0,0.00019683,2]
[360149939,1746576643966,-450.0,0.00019683,2]
[360149940,1746576643975,-450.0,0.00019683,2]
[360149941,1746576643985,-450.0,0.00019683,2]
[360149942,1746576643995,-45654.46,0.00019683,2]
[360149943,1746576644004,-450.0,0.00019683,2]
[360149944,1746576644014,-450.0,0.00019683,2]
[360149945,1746576644023,-591.95,0.00019683,2]
[360149946,1746576644033,-454.58,0.00019683,2]
[360149947,1746576644043,-450.0,0.00019683,2]
[360149948,1746576644053,-450.0,0.00019683,2]
[360149949,1746576644062,-450.0,0.00019683,2]
[360149950,1746576644072,-450.0,0.00019683,2]
[360149951,1746576644082,-661.02,0.00019683,2]
[360149952,1746576644091,-2651.84,0.00019683,2]
[360149953,1746576644101,-450.0,0.00019683,2]
[360149954,1746576644110,-450.0,0.00019683,2]
[360149955,1746576644120,-2407.37,0.00019683,2]
[360149956,1746576644130,-450.0,0.00019683,2]
[360149957,1746576644140,-632.52,0.00019683,2]
[360149958,1746576644150,-450.0,0.00019683,2]
[360149959,1746576644159,-450.0,0.00019683,2]
[360149960,1746576644169,-450.0,0.00019683,2]
[360149961,1746576644178,-2243.96,0.00019683,2]
[360149962,1746576644189,-880.23,0.00019683,2]
[360149963,1746576644198,-880.23,0.00019683,2]
[360149964,1746576644208,-450.0,0.00019683,2]
[360149965,1746576644218,-205.57904787,0.00019683,2]
[360149966,1746576644228,-527.12,0.00019683,2]
[360149967,1746576644238,-550.0,0.00019683,2]
[360149968,1746576644247,-485.78564461,0.00019683,2]
[360149969,1746576644256,-866.26,0.00019683,2]
[360149970,1746576644266,-605.15,0.00019683,2]
[360149971,1746576644276,-450.0,0.00019683,2]
[360149972,1746576644285,-450.0,0.00019683,2]
[360149973,1746576644412,-749.78,0.00019683,2]
[360149974,1746576644423,-450.0,0.00019683,2]
[360149975,1746576644433,-450.0,0.00019683,2]
[360149976,1746576644443,-450.0,0.00019683,2]
[360149977,1746576644453,-450.0,0.00019683,2]
[360149978,1746576644462,-450.0,0.00019683,2]
[360149979,1746576644472,-1255.34,0.00019683,2]
[360149980,1746576644481,-450.0,0.00019683,2]
[360149981,1746576644490,-2580.83,0.00019683,2]
[360149982,1746576644500,-530.31733752,0.00019683,2]
[360149983,1746576644509,-2580.83,0.00019683,2]
[360149984,1746576644519,-450.0,0.00019683,2]
[360149985,1746576644528,-515.91,0.00019683,2]
[360149986,1746576644537,-450.0,0.00019683,2]
[360149987,1746576644547,-636.19,0.00019683,2]
[360149988,1746576644556,-550.0,0.00019683,2]
[360149989,1746576644565,-450.0,0.00019683,2]
[360149990,1746576644574,-450.0,0.00019683,2]
[360149991,1746576644587,-450.0,0.00019683,2]
[360149992,1746576644596,-450.0,0.00019683,2]
[360149993,1746576644606,-473.61,0.00019683,2]
[360149994,1746576644615,-1273.09,0.00019683,2]
[360149995,1746576644624,-450.0,0.00019683,2]
[360149996,1746576644634,-450.0,0.00019683,2]
[360149997,1746576644644,-450.0,0.00019683,2]
[360149998,1746576644653,-450.0,0.00019683,2]
[360149999,1746576644662,-374.93,0.00019683,2]
[360150000,1746576644672,-623.27,0.00019683,2]
[360150001,1746576644681,-623.27,0.00019683,2]
[360150002,1746576644693,-534.52,0.00019683,2]
[360150003,1746576644706,-450.0,0.00019683,2]
[360150004,1746576644716,-1176.160667,0.00019683,2]
[360150005,1746576644726,-536.69161046,0.00019683,2]
[360150006,1746576644735,-450.0,0.00019683,2]
[360150007,1746576644746,-450.0,0.00019683,2]
[360150008,1746576644756,-1267.75,0.00019683,2]
[360150009,1746576644766,-450.0,0.00019683,2]
[360150010,1746576644776,-450.0,0.00019683,2]
[360150011,1746576644785,-450.0,0.00019683,2]
[360150012,1746576644795,-3661.85,0.00019683,2]
[360150013,1746576644804,-2666.0,0.00019683,2]
[360150014,1746576644814,-450.0,0.00019683,2]
[360150015,1746576644826,-450.0,0.00019683,2]
[360150016,1746576644835,-500.0,0.00019683,2]
[360150017,1746576644845,-550.0,0.00019684,2]
[360150018,1746576644854,-450.0,0.00019684,2]
[360150019,1746576644864,-450.0,0.00019684,2]
[360150020,1746576644874,-450.0,0.00019684,2]
[360150021,1746576644883,-450.0,0.00019684,2]
[360150022,1746576644893,-450.0,0.00019684,2]
[360150023,1746576644902,-450.0,0.00019684,2]
[360150024,1746576644911,-162.05353208,0.00019684,2]
[360150025,1746576644921,-450.0,0.00019684,2]
[360150026,1746576644930,-519.45054606,0.00019684,2]
[360150027,1746576644940,-527.41898386,0.00019684,2]
[360150028,1746576644950,-450.0,0.00019684,2]
[360150029,1746576644959,-450.0,0.00019684,2]
[360150030,1746576644969,-450.0,0.00019684,2]
[360150031,1746576644978,-450.0,0.00019684,2]
[360150032,1746576644987,-450.0,0.00019684,2]
[360150033,1746576644997,-450.0,0.00019684,2]
[360150034,1746576645006,-450.0,0.00019684,2]
[360150035,1746576645016,-450.0,0.00019684,2]
[360150036,1746576645025,-470.0,0.00019684,2]
[360150037,1746576645035,-360.0,0.00019684,2]
[360150038,1746576645044,-530.00059875,0.00019684,2]
[360150039,1746576645053,-450.0,0.00019684,2]
[360150040,1746576645063,-230.63795249,0.00019684,2]
[360150041,1746576645073,-450.0,0.00019684,2]
[360150042,1746576645082,-450.0,0.00019684,2]
[360150043,1746576645091,-450.0,0.00019684,2]
[360150044,1746576645101,-450.0,0.00019684,2]
[360150045,1746576645113,-450.0,0.00019684,2]
[360150046,1746576645123,-450.0,0.00019684,2]
[360150047,1746576645132,-450.0,0.00019684,2]
[360150048,1746576645142,-450.0,0.00019684,2]
[360150049,1746576645152,-450.0,0.00019684,2]
[360150050,1746576645161,-450.0,0.00019684,2]
[360150051,1746576645170,-450.0,0.00019684,2]
[360150052,1746576645179,-370.65592861,0.00019684,2]
[360150053,1746576645189,-450.0,0.00019684,2]
[360150054,1746576645198,-450.0,0.00019684,2]
[360150055,1746576645208,-450.0,0.00019684,2]
[360150056,1746576645217,-450.0,0.00019684,2]
[360150057,1746576645227,-450.0,0.00019684,2]
[360150058,1746576645236,-503.78,0.00019684,2]
[360150059,1746576645246,-503.78,0.00019684,2]
[360150060,1746576645255,-450.0,0.00019684,2]
[360150061,1746576645264,-450.0,0.00019684,2]
[360150062,1746576645273,-450.0,0.00019684,2]
[360150063,1746576645283,-722.34,0.00019684,2]
[360150064,1746576645292,-450.0,0.00019684,2]
[360150065,1746576645301,-184.84217052,0.00019684,2]
[360150066,1746576645310,-450.0,0.00019684,2]
[360150067,1746576645320,-450.0,0.00019684,2]
[360150068,1746576645329,-450.0,0.00019684,2]
[360150069,1746576645339,-451.87,0.00019684,2]
[360150070,1746576645348,-451.87,0.00019684,2]
[360150071,1746576645360,-450.11929238,0.00019684,2]
[360150072,1746576645369,-450.0,0.00019684,2]
[360150073,1746576645379,-450.0,0.00019684,2]
[360150074,1746576645388,-450.0,0.00019684,2]
[360150075,1746576645398,-450.0,0.00019684,2]
[360150076,1746576645407,-450.0,0.00019684,2]
[360150077,1746576645416,-502.28135973,0.00019684,2]
[360150078,1746576645427,-1165.65,0.00019684,2]
[360150079,1746576645437,-450.0,0.00019684,2]
[360150080,1746576645448,-450.0,0.00019684,2]
[360150081,1746576645457,-250.0,0.00019684,2]
[360150082,1746576645466,-250.0,0.00019684,2]
[360150083,1746576645476,-450.0,0.00019684,2]
[360150084,1746576645485,-450.0,0.00019684,2]
[360150085,1746576645495,-450.0,0.00019684,2]
[360150086,1746576645504,-796.09,0.00019684,2]
[360150087,1746576645513,-450.0,0.00019684,2]
[360150088,1746576645523,-461.04161542,0.00019684,2]
[360150089,1746576645533,-450.0,0.00019684,2]
[360150090,1746576645542,-450.0,0.00019684,2]
[360150091,1746576645552,-450.0,0.00019684,2]
[360150093,1746576645561,-450.0,0.00019684,2]
[360150094,1746576645570,-450.0,0.00019684,2]
[360150095,1746576645579,-450.0,0.00019684,2]
[360150096,1746576645588,-450.0,0.00019684,2]
[360150097,1746576645597,-450.0,0.00019684,2]
[360150098,1746576645606,-450.0,0.00019684,2]
[360150099,1746576645616,-580.85561887,0.00019684,2]
[360150100,1746576645625,-450.0,0.00019684,2]
[360150101,1746576645634,-189.94977132,0.00019684,2]
[360150102,1746576645643,-450.0,0.00019684,2]
[360150103,1746576645653,-450.0,0.00019684,2]
[360150104,1746576645662,-450.0,0.00019684,2]
[360150105,1746576645671,-450.0,0.00019684,2]
[360150106,1746576645680,-450.0,0.00019684,2]
[360150107,1746576645690,-450.0,0.00019684,2]
[360150108,1746576645699,-450.0,0.00019684,2]
[360150109,1746576645708,-470.0,0.00019684,2]
[360150110,1746576645718,-161.30248728,0.00019684,2]
[360150111,1746576645728,-450.0,0.00019684,2]
[360150112,1746576645737,-450.0,0.00019684,2]
[360150113,1746576645746,-450.0,0.00019684,2]
[360150114,1746576645755,-450.0,0.00019684,2]
[360150115,1746576645765,-450.0,0.00019684,2]
[360150116,1746576645774,-450.0,0.00019684,2]
[360150117,1746576645784,-450.0,0.00019684,2]
[360150118,1746576645794,-450.0,0.00019684,2]
[360150120,1746576645803,-535.8989067,0.00019684,2]
[360150121,1746576645813,-450.0,0.00019684,2]
[360150122,1746576645823,-450.0,0.00019684,2]
[360150123,1746576645832,-450.0,0.00019684,2]
[360150124,1746576645842,-450.0,0.00019684,2]
[360150125,1746576645851,-450.0,0.00019684,2]
[360150126,1746576645861,-450.0,0.00019684,2]
[360150127,1746576645870,-450.0,0.00019684,2]
[360150128,1746576645879,-450.0,0.00019684,2]
[360150129,1746576645889,-450.0,0.00019684,2]
[360150130,1746576645899,-450.0,0.00019684,2]
[360150131,1746576645908,-769.22,0.00019684,2]
[360150132,1746576645920,-769.22,0.00019684,2]
[360150133,1746576645929,-450.0,0.00019684,2]
[360150134,1746576645939,-450.0,0.00019684,2]
[360150135,1746576645948,-708.68,0.00019684,2]
[360150136,1746576645957,-708.68,0.00019684,2]
[360150137,1746576645967,-610.67,0.00019684,2]
[360150138,1746576645977,-450.0,0.00019684,2]
[360150139,1746576645986,-450.0,0.00019684,2]
[360150140,1746576645996,-450.0,0.00019684,2]
[360150141,1746576646006,-519.35994476,0.00019684,2]
[360150142,1746576646016,-450.0,0.00019684,2]
[360150143,1746576646026,-450.0,0.00019684,2]
[360150144,1746576646035,-647.68,0.00019684,2]
[360150145,1746576646045,-647.68,0.00019684,2]
[360150146,1746576646055,-471.11989172,0.00019684,2]
[360150147,1746576646065,-450.0,0.00019684,2]
[360150148,1746576646074,-450.0,0.00019684,2]
[360150149,1746576646084,-450.0,0.00019684,2]
[360150150,1746576646093,-788.76,0.00019684,2]
[360150151,1746576646103,-450.0,0.00019684,2]
[360150152,1746576646112,-788.76,0.00019684,2]
[360150153,1746576646121,-450.0,0.00019684,2]
[360150154,1746576646131,-450.0,0.00019684,2]
[360150155,1746576646140,-300.0,0.00019684,2]
[360150156,1746576646149,-450.0,0.00019684,2]
[360150157,1746576646159,-450.0,0.00019684,2]
[360150158,1746576646168,-318.48,0.00019684,2]
[360150159,1746576646177,-450.0,0.00019684,2]
[360150160,1746576646188,-450.0,0.00019684,2]
[360150161,1746576646197,-450.0,0.00019684,2]
[360150162,1746576646207,-450.0,0.00019684,2]
[360150163,1746576646216,-450.0,0.00019684,2]
[360150164,1746576646226,-450.0,0.00019684,2]
[360150165,1746576646235,-189.98352194,0.00019684,2]
[360150166,1746576646244,-591.31,0.00019684,2]
[360150167,1746576646253,-490.0,0.00019684,2]
[360150168,1746576646263,-450.0,0.00019684,2]
[360150169,1746576646272,-450.0,0.00019684,2]
[360150170,1746576646281,-450.0,0.00019684,2]
[360150171,1746576646291,-450.0,0.00019684,2]
[360150172,1746576646300,-450.0,0.00019684,2]
[360150173,1746576646309,-450.0,0.00019684,2]
[360150174,1746576646319,-306.50903875,0.00019684,2]
[360150175,1746576646328,-450.0,0.00019684,2]
[360150176,1746576646338,-450.0,0.00019684,2]
[360150177,1746576646347,-658.89,0.00019684,2]
[360150178,1746576646360,-542.29934466,0.00019684,2]
[360150179,1746576646370,-658.89,0.00019684,2]
[360150180,1746576646379,-160.47829829,0.00019684,2]
[360150181,1746576646389,-837.22,0.00019684,2]
[360150183,1746576646506,-450.0,0.00019684,2]
[360150184,1746576646516,-450.0,0.00019684,2]
[360150185,1746576646527,-227.8999941,0.00019684,2]
[360150186,1746576646537,-2000.0,0.00019684,2]
[360150187,1746576646546,-450.0,0.00019684,2]
[360150188,1746576646555,-450.0,0.00019684,2]
[360150189,1746576646565,-450.0,0.00019684,2]
[360150190,1746576646574,-450.0,0.00019684,2]
[360150191,1746576646584,-450.0,0.00019684,2]
[360150192,1746576646593,-450.0,0.00019684,2]
[360150193,1746576646602,-450.0,0.00019684,2]
[360150194,1746576646612,-450.0,0.00019684,2]
[360150195,1746576646621,-450.0,0.00019684,2]
[360150196,1746576646630,-450.0,0.00019684,2]
[360150197,1746576646639,-450.0,0.00019684,2]
[360150198,1746576646648,-422.52,0.00019684,2]
[360150199,1746576646658,-450.0,0.00019684,2]
[360150200,1746576646668,-450.0,0.00019684,2]
[360150201,1746576646677,-257.96375671,0.00019684,2]
[360150202,1746576646686,-450.0,0.00019684,2]
[360150203,1746576646696,-450.0,0.00019684,2]
[360150204,1746576646705,-330.40765097,0.00019684,2]
[360150205,1746576646714,-450.0,0.00019684,2]
[360150206,1746576646723,-450.0,0.00019684,2]
[360150207,1746576646733,-590.0,0.00019684,2]
[360150208,1746576646742,-554.26259716,0.00019684,2]
[360150209,1746576646752,-783.5,0.00019684,2]
[360150210,1746576646762,-783.5,0.00019684,2]
[360150211,1746576646771,-450.0,0.00019684,2]
[360150212,1746576646780,-450.0,0.00019684,2]
[360150213,1746576646789,-450.0,0.00019684,2]
[360150214,1746576646799,-450.0,0.00019684,2]
[360150215,1746576646808,-450.0,0.00019684,2]
[360150216,1746576646817,-450.0,0.00019684,2]
[360150217,1746576646826,-590.0,0.00019684,2]
[360150218,1746576646836,-450.0,0.00019684,2]
[360150219,1746576646845,-450.0,0.00019684,2]
[360150220,1746576646855,-450.0,0.00019684,2]
[360150221,1746576646864,-635.88,0.00019684,2]
[360150222,1746576646873,-635.88,0.00019684,2]
[360150223,1746576646883,-450.0,0.00019684,2]
[360150224,1746576646892,-450.0,0.00019684,2]
[360150225,1746576646902,-450.0,0.00019684,2]
[360150226,1746576646911,-450.0,0.00019684,2]
[360150227,1746576646921,-450.0,0.00019684,2]
[360150228,1746576646930,-571.70014039,0.00019684,2]
[360150229,1746576646941,-450.0,0.00019684,2]
[360150230,1746576646950,-450.0,0.00019684,2]
[360150231,1746576646959,-500.0,0.00019684,2]
[360150232,1746576646969,-450.0,0.00019684,2]
[360150233,1746576646978,-450.0,0.00019684,2]
[360150234,1746576646988,-450.0,0.00019684,2]
[360150235,1746576646997,-450.0,0.00019684,2]
[360150236,1746576647006,-450.0,0.00019684,2]
[360150237,1746576647015,-511.28999462,0.00019684,2]
[360150238,1746576647025,-450.0,0.00019684,2]
[360150239,1746576647034,-450.0,0.00019684,2]
[360150240,1746576647043,-450.0,0.00019684,2]
[360150241,1746576647052,-450.0,0.00019684,2]
[360150242,1746576647062,-450.0,0.00019684,2]
[360150243,1746576647071,-450.0,0.00019684,2]
[360150244,1746576647080,-534.28,0.00019684,2]
[360150245,1746576647089,-1080.15,0.00019684,2]
[360150246,1746576647098,-467.16,0.00019684,2]
[360150247,1746576647107,-467.16,0.00019684,2]
[360150248,1746576647116,-370.5392224,0.00019684,2]
[360150249,1746576647125,-450.0,0.00019684,2]
[360150250,1746576647134,-450.0,0.00019684,2]
[360150251,1746576647143,-1363.24,0.00019684,2]
[360150252,1746576647153,-1363.24,0.00019684,2]
[360150253,1746576647162,-450.0,0.00019684,2]
[360150254,1746576647171,-450.0,0.00019684,2]
[360150255,1746576647179,-1332.95,0.00019684,2]
[360150256,1746576647189,-1332.95,0.00019684,2]
[360150257,1746576647199,-208.00903827,0.00019684,2]
[360150258,1746576647208,-450.0,0.00019684,2]
[360150259,1746576647217,-1106.73,0.00019684,2]
[360150260,1746576647226,-450.0,0.00019684,2]
[360150261,1746576647235,-450.0,0.00019684,2]
[360150262,1746576647244,-845.89,0.00019684,2]
[360150263,1746576647254,-450.0,0.00019684,2]
[360150264,1746576647263,-520.0,0.00019684,2]
[360150265,1746576647272,-450.0,0.00019684,2]
[360150266,1746576647282,-450.0,0.00019684,2]
[360150267,1746576647291,-450.0,0.00019684,2]
[360150268,1746576647301,-485.38,0.00019684,2]
[360150269,1746576647310,-494.87444824,0.00019684,2]
[360150270,1746576647320,-450.0,0.00019684,2]
[360150271,1746576647329,-450.0,0.00019684,2]
[360150272,1746576647339,-450.0,0.00019684,2]
[360150273,1746576647349,-485.09778614,0.00019684,2]
[360150274,1746576647363,-520.0,0.00019684,2]
[360150275,1746576647372,-465.23,0.00019684,2]
[360150276,1746576647382,-911.99,0.00019684,2]
[360150277,1746576647392,-465.23,0.00019684,2]
[360150278,1746576647402,-450.0,0.00019684,2]
[360150279,1746576647411,-450.0,0.00019684,2]
[360150280,1746576647420,-450.0,0.00019684,2]
[360150281,1746576647432,-500.0,0.00019684,2]
[360150282,1746576647442,-500.0,0.00019684,2]
[360150283,1746576647451,-538.21417302,0.00019684,2]
[360150284,1746576647460,-450.0,0.00019684,2]
[360150285,1746576647469,-545.73,0.00019684,2]
[360150286,1746576647479,-545.73,0.00019684,2]
[360150287,1746576647488,-1291.54,0.00019684,2]
[360150288,1746576647498,-1291.54,0.00019684,2]
[360150289,1746576647507,-1043.93,0.00019684,2]
[360150290,1746576647517,-1043.93,0.00019684,2]
[360150291,1746576647526,-450.0,0.00019684,2]
[360150292,1746576647535,-572.94587042,0.00019684,2]
[360150293,1746576647544,-470.88,0.00019684,2]
[360150294,1746576647553,-450.0,0.00019684,2]
[360150295,1746576647563,-450.0,0.00019684,2]
[360150296,1746576647572,-983.61,0.00019684,2]
[360150297,1746576647582,-983.61,0.00019684,2]
[360150298,1746576647591,-1756.06,0.00019684,2]
[360150299,1746576647601,-1756.06,0.00019684,2]
[360150300,1746576647610,-450.0,0.00019684,2]
[360150301,1746576647620,-450.0,0.00019684,2]
[360150302,1746576647629,-450.0,0.00019684,2]
[360150303,1746576647639,-1498.54,0.00019684,2]
[360150304,1746576647648,-450.0,0.00019684,2]
[360150305,1746576647657,-1498.54,0.00019684,2]
[360150306,1746576647666,-450.0,0.00019684,2]
[360150307,1746576647676,-450.0,0.00019684,2]
[360150308,1746576647686,-450.0,0.00019684,2]
[360150309,1746576647696,-450.0,0.00019684,2]
[360150310,1746576647705,-450.0,0.00019684,2]
[360150311,1746576647715,-450.0,0.00019684,2]
[360150312,1746576647724,-552.32,0.00019684,2]
[360150313,1746576647734,-450.0,0.00019684,2]
[360150314,1746576647743,-450.0,0.00019684,2]
[360150315,1746576647753,-464.03,0.00019684,2]
[360150316,1746576647763,-464.03,0.00019684,2]
[360150317,1746576647772,-450.0,0.00019684,2]
[360150318,1746576647781,-450.0,0.00019684,2]
[360150319,1746576647791,-2279.53,0.00019684,2]
[360150320,1746576647801,-2279.53,0.00019684,2]
[360150321,1746576647810,-450.0,0.00019684,2]
[360150322,1746576647820,-470.0,0.00019684,2]
[360150323,1746576647830,-450.0,0.00019684,2]
[360150324,1746576647839,-698.56,0.00019684,2]
[360150325,1746576647849,-450.0,0.00019684,2]
[360150326,1746576647859,-698.56,0.00019684,2]
[360150327,1746576647869,-450.0,0.00019684,2]
[360150328,1746576647879,-450.0,0.00019684,2]
[360150329,1746576647889,-1419.98,0.00019684,2]
[360150330,1746576647898,-1419.98,0.00019684,2]
[360150331,1746576647907,-450.0,0.00019684,2]
[360150332,1746576647917,-450.0,0.00019684,2]
[360150333,1746576647926,-450.0,0.00019684,2]
[360150334,1746576647935,-450.0,0.00019684,2]
[360150335,1746576647945,-821.44,0.00019684,2]
[360150336,1746576647955,-793.66,0.00019684,2]
[360150337,1746576647965,-2286.55,0.00019684,2]
[360150338,1746576647974,-2286.55,0.00019684,2]
[360150339,1746576647983,-450.0,0.00019684,2]
[360150340,1746576647993,-202.45129678,0.00019684,2]
[360150341,1746576648002,-170.0,0.00019684,2]
[360150342,1746576648012,-450.0,0.00019684,2]
[360150343,1746576648021,-450.0,0.00019684,2]
[360150344,1746576648030,-403.13100663,0.00019684,2]
[360150345,1746576648040,-4124.07,0.00019684,2]
[360150346,1746576648049,-450.0,0.00019684,2]
[360150347,1746576648059,-558.05894198,0.00019684,2]
[360150348,1746576648068,-450.0,0.00019684,2]
[360150349,1746576648078,-450.0,0.00019684,2]
[360150350,1746576648088,-450.0,0.00019684,2]
[360150351,1746576648097,-450.0,0.00019684,2]
[360150352,1746576648107,-450.0,0.00019684,2]
[360150353,1746576648116,-450.0,0.00019684,2]
[360150354,1746576648126,-450.0,0.00019684,2]
[360150355,1746576648135,-450.0,0.00019684,2]
[360150356,1746576648144,-753.15,0.00019684,2]
[360150357,1746576648153,-490.0,0.00019684,2]
[360150358,1746576648163,-2084.06,0.00019684,2]
[360150359,1746576648172,-1060.52,0.00019684,2]
[360150360,1746576648182,-1060.52,0.00019684,2]
[360150361,1746576648191,-1629.87,0.00019684,2]
[360150362,1746576648201,-1629.87,0.00019684,2]
[360150363,1746576648211,-450.0,0.00019684,2]
[360150364,1746576648220,-1771.37,0.00019684,2]
[360150365,1746576648229,-1771.37,0.00019684,2]
[360150366,1746576648239,-974.88,0.00019684,2]
[360150367,1746576648249,-450.0,0.00019684,2]
[360150368,1746576648258,-450.0,0.00019684,2]
[360150369,1746576648267,-450.0,0.00019684,2]
[360150370,1746576648276,-241.23588929,0.00019684,2]
[360150371,1746576648285,-1336.46,0.00019684,2]
[360150372,1746576648295,-1336.46,0.00019684,2]
[360150373,1746576648398,-450.0,0.00019684,2]
[360150374,1746576648422,-489.28022793,0.00019684,2]
[360150375,1746576648432,-623.13,0.00019684,2]
[360150376,1746576648441,-497.13,0.00019684,2]
[360150377,1746576648451,-467.37,0.00019684,2]
[360150378,1746576648460,-2998.45,0.00019684,2]
[360150379,1746576648469,-467.37,0.00019684,2]
[360150380,1746576648479,-2998.45,0.00019684,2]
[360150381,1746576648489,-3717.28,0.00019684,2]
[360150382,1746576648498,-3717.28,0.00019684,2]
[360150383,1746576648507,-1234.89,0.00019684,2]
[360150384,1746576648516,-450.0,0.00019684,2]
[360150385,1746576648526,-363.42,0.00019684,2]
[360150386,1746576648535,-652.02,0.00019684,2]
[360150387,1746576648545,-732.65,0.00019684,2]
[360150388,1746576648554,-450.0,0.00019684,2]
[360150389,1746576648564,-450.0,0.00019684,2]
[360150390,1746576648573,-450.0,0.00019684,2]
[360150391,1746576648582,-2392.18,0.00019684,2]
[360150392,1746576648591,-450.0,0.00019684,2]
[360150393,1746576648601,-450.0,0.00019684,2]
[360150394,1746576648610,-450.0,0.00019684,2]
[360150395,1746576648619,-450.0,0.00019684,2]
[360150396,1746576648629,-450.0,0.00019684,2]
[360150397,1746576648638,-450.0,0.00019684,2]
[360150398,1746576648648,-2736.58,0.00019684,2]
[360150399,1746576648657,-2736.58,0.00019684,2]
[360150400,1746576648667,-450.0,0.00019684,2]
[360150401,1746576648677,-450.0,0.00019684,2]
[360150402,1746576648687,-2035.16,0.00019684,2]
[360150403,1746576648697,-2035.16,0.00019684,2]
[360150404,1746576648706,-450.0,0.00019684,2]
[360150405,1746576648715,-450.0,0.00019684,2]
[360150406,1746576648725,-2549.19,0.00019684,2]
[360150407,1746576648735,-1807.95,0.00019684,2]
[360150408,1746576648744,-2788.28,0.00019684,2]
[360150409,1746576648754,-2788.28,0.00019684,2]
[360150410,1746576648764,-450.0,0.00019684,2]
[360150411,1746576648774,-450.0,0.00019684,2]
[360150412,1746576648783,-581.11,0.00019684,2]
[360150413,1746576648793,-450.0,0.00019684,2]
[360150414,1746576648802,-450.0,0.00019684,2]
[360150415,1746576648811,-1955.13,0.00019684,2]
[360150416,1746576648820,-1955.13,0.00019684,2]
[360150417,1746576648829,-450.0,0.00019684,2]
[360150418,1746576648839,-450.0,0.00019684,2]
[360150419,1746576648848,-450.0,0.00019684,2]
[360150420,1746576648858,-450.0,0.00019684,2]